bitfinex/quotes_ETHUSD_20251108
["timestamp","ask_amount","ask_price","bid_price","bid_amount"]
[1762572876032,3.81360757,3459.6,3459.5,0.001]
[1762572876272,4.57068238,3459.6,3459.5,0.001]
[1762572883002,0.75707481,3459.6,3459.5,0.001]
[1762572883298,0.4966,3459.6,3459.5,0.001]
[1762572883483,2.89049245,3459.7,3459.5,0.001]
[1762572883802,3.57134958,3459.8,3459.5,0.001]
[1762572884005,2.89043712,3459.7,3459.5,0.001]
[1762572884499,0.681,3459.8,3459.5,0.001]
[1762572884500,2.89050757,3459.6,3459.5,0.001]
[1762572884702,3.38710757,3459.6,3459.5,0.001]
[1762572884870,0.4966,3459.6,3459.5,0.001]
[1762572885377,3.38710757,3459.6,3459.5,0.001]
[1762572885578,0.4966,3459.6,3459.5,0.001]
[1762572885778,3.38710757,3459.6,3459.5,0.001]
[1762572886698,0.4966,3459.6,3459.5,0.001]
[1762572887010,3.38710757,3459.6,3459.5,0.001]
[1762572888406,0.4966,3459.6,3459.5,0.001]
[1762572888610,0.681,3459.8,3459.5,0.4418]
[1762572888772,0.681,3459.8,3459.6,0.4408]
[1762572888971,0.681,3459.8,3459.5,0.001]
[1762572889910,3.57134221,3459.8,3459.5,0.001]
[1762572890888,2.89019629,3460.0,3459.5,0.001]
[1762572891087,0.681,3459.9,3459.5,3.33234111]
[1762572891294,0.681,3459.9,3459.5,0.4418]
[1762572891608,3.57130671,3459.9,3459.5,0.001]
[1762572891980,0.681,3459.9,3459.5,0.001]
[1762572893511,0.681,3459.9,3459.5,2.89158268]
[1762572893740,0.002,3460.0,3459.8,3.33111895]
[1762572893915,0.002,3460.0,3459.9,0.4408]
[1762572894778,0.002,3460.0,3459.9,0.8816]
[1762572895178,0.002,3460.0,3459.9,0.4408]
[1762572895782,0.002,3460.0,3459.9,0.8816]
[1762572895986,0.002,3460.0,3459.9,0.4408]
[1762572897177,0.002,3460.0,3459.9,4.46700281]
[1762572897381,0.002,3460.0,3459.9,4.43810025]
[1762572900230,0.002,3460.0,3459.9,4.87250681]
[1762572900546,0.002,3460.0,3459.9,1.10704331]
[1762572900744,0.4986,3460.0,3459.5,0.406504]
[1762572900952,0.002,3460.0,3459.9,0.4408]
[1762572901722,0.4986,3460.0,3459.5,2.89158989]
[1762572901927,0.4986,3460.0,3459.6,2.89049532]
[1762572902238,0.4986,3460.0,3459.5,0.001]
[1762572902614,0.4986,3460.0,3459.5,2.89156379]
[1762572903059,0.3941,3459.6,3459.5,0.001]
[1762572904173,0.8503,3459.6,3459.5,0.001]
[1762572905107,0.8941,3459.6,3459.5,0.001]
[1762572907347,0.5,3459.6,3459.5,0.4418]
[1762572907956,0.5,3459.6,3459.5,3.33239112]
[1762572908162,0.5,3459.6,3459.5,3.77319112]
[1762572908527,0.5,3459.6,3459.5,0.4418]
[1762572909048,0.5,3459.6,3459.5,3.33239112]
[1762572909255,0.5,3459.6,3459.5,3.77319112]
[1762572909587,0.9567,3459.6,3459.5,0.001]
[1762572909766,1.4129,3459.6,3459.5,0.001]
[1762572910153,2.13246312,3459.6,3459.5,0.001]
[1762572910692,5.02297069,3459.6,3459.5,0.001]
[1762572912668,5.70297069,3459.6,3459.5,0.001]
[1762572913191,2.35626312,3459.6,3459.5,0.001]
[1762572913390,0.9567,3459.6,3459.5,0.001]
[1762572913590,4.30340757,3459.6,3459.5,0.001]
[1762572919386,4.98340757,3459.6,3459.5,0.001]
[1762572924993,3.32435824,3459.3,3459.2,1e-08]
[1762572925195,4.00435824,3459.3,3459.2,1e-08]
[1762572925407,4.46055824,3459.3,3459.2,1e-08]
[1762572926783,2.89109254,3458.9,3458.1,0.005]
[1762572926979,5.60354607,3458.9,3458.1,0.005]
[1762572928817,6.00905007,3458.9,3458.1,0.005]
[1762572930202,0.4567,3458.2,3457.1,0.005]
[1762572930407,3.33431417,3457.2,3457.1,0.005]
[1762572932206,3.79051417,3457.2,3457.1,0.005]
[1762572936245,2.89251417,3457.2,3457.1,0.4458]
[1762572936462,3.57251417,3457.2,3457.1,0.4458]
[1762572936761,4.05601417,3457.2,3457.1,0.005]
[1762572937062,0.68,3457.2,3457.1,0.005]
[1762572937270,3.57251417,3457.2,3457.1,0.005]
[1762572937429,0.68,3457.2,3457.1,0.4458]
[1762572937750,0.68,3457.2,3457.1,0.5751]
[1762572938133,0.68,3457.3,3457.1,0.5751]
[1762572938338,3.37601417,3457.2,3457.1,0.005]
[1762572938573,4.42633494,3457.2,3457.1,0.005]
[1762572943373,4.42633494,3457.2,3457.1,0.006]
[1762572947085,3.92953494,3457.2,3457.1,0.006]
[1762572947284,4.38403494,3457.2,3457.1,0.006]
[1762572951487,4.78953894,3457.2,3457.1,1e-08]
[1762572951801,7.9504153,3457.2,3457.1,1e-08]
[1762572952357,16.00070292,3457.2,3457.1,1e-08]
[1762572954288,13.63470292,3457.2,3457.1,1e-08]
[1762572956495,5.5844153,3457.2,3457.1,1e-08]
[1762572960094,4.7244113,3457.2,3457.1,1e-08]
[1762572960297,5.1789113,3457.2,3457.1,1e-08]
[1762572960496,5.5844153,3457.2,3457.1,1e-08]
[1762572961562,5.5844153,3457.2,3457.1,0.44080001]
[1762572961563,4.2409113,3457.2,3457.1,0.44080001]
[1762572961825,4.60183494,3457.2,3457.1,1e-08]
[1762572962021,5.05833494,3457.2,3457.1,1e-08]
[1762572963713,0.002,3457.6,3457.2,3.4625538]
[1762572963914,0.002,3457.6,3457.5,0.4408]
[1762572964089,0.002,3457.6,3457.2,0.1293]
[1762572964388,2.8924305,3457.3,3457.2,0.1293]
[1762572964587,0.306,3457.5,3457.2,0.1293]
[1762572964796,3.19826319,3457.5,3457.4,0.4408]
[1762572965223,3.19826319,3457.5,3457.4,0.8816]
[1762572965761,3.69826319,3457.5,3457.4,0.8816]
[1762572966925,0.806,3457.5,3457.4,0.8816]
[1762572968222,4.92858582,3457.5,3457.2,0.1293]
[1762572968423,2.89251417,3457.2,3457.1,1e-08]
[1762572968636,4.51741417,3457.2,3457.1,1e-08]
[1762572969186,5.36965871,3457.2,3457.1,1e-08]
[1762572969328,6.62557486,3457.2,3457.1,1e-08]
[1762572969529,5.77333032,3457.2,3457.1,1e-08]
[1762572969721,6.62557486,3457.2,3457.1,1e-08]
[1762572969925,5.77333032,3457.2,3457.1,1e-08]
[1762572973287,5.28723032,3457.2,3457.1,1e-08]
[1762572973755,5.77333032,3457.2,3457.1,1e-08]
[1762572976693,6.17883432,3457.2,3457.1,1e-08]
[1762572981687,6.29470095,3457.2,3457.1,1e-08]
[1762572981885,0.05,3459.5,3457.4,0.3255]
[1762572982085,1.95767637,3461.0,3457.1,0.32550001]
[1762572982086,3.07331922,3461.1,3459.8,0.14904599]
[1762572982284,0.184,3462.0,3459.9,0.4643]
[1762572982285,0.11580038,3460.2,3459.9,0.4643]
[1762572982498,0.635,3461.3,3460.1,0.6828]
[1762572982683,0.512,3460.8,3460.1,0.1877]
[1762572982887,1.89807725,3460.8,3460.1,0.1877]
[1762572983084,2.89025694,3459.9,3459.8,0.14904599]
[1762572983321,2.89104576,3459.0,3458.7,0.4643]
[1762572983485,0.702,3458.9,3458.7,0.4643]
[1762572983691,0.702,3458.9,3457.9,2.89190704]
[1762572983913,0.702,3458.9,3458.8,0.6828]
[1762572984138,0.702,3458.9,3458.8,1.1471]
[1762572984313,1.06130349,3458.9,3458.8,1.1471]
[1762572984688,3.95239603,3458.9,3458.8,1.1471]
[1762572984996,1.06130349,3458.9,3458.8,1.1471]
[1762572985197,0.702,3458.9,3458.8,1.1471]
[1762572987235,0.184,3459.9,3458.8,1.1471]
[1762572987407,0.184,3459.9,3459.3,0.4951]
[1762572987408,2.89052433,3459.6,3459.3,0.4951]
[1762572987608,0.701,3459.8,3459.3,0.4951]
[1762572987609,2.89043957,3459.7,3459.3,0.4951]
[1762572987936,0.35914396,3459.6,3459.5,0.6828]
[1762572988238,0.35914396,3459.6,3459.5,0.1877]
[1762572988437,0.35914396,3459.6,3459.5,1.1471]
[1762572988438,1.05914396,3459.6,3459.5,1.1471]
[1762572988611,0.7,3459.6,3459.5,1.1471]
[1762572989368,0.7,3459.9,3459.6,2.89047308]
[1762572989526,0.7,3460.0,3459.7,2.89038785]
[1762572989846,0.7,3460.0,3459.8,0.9594]
[1762572990046,0.7,3460.0,3459.9,0.9594]
[1762572991250,0.7,3460.4,3459.9,3.84958179]
[1762572991468,0.7,3460.4,3460.0,0.4643]
[1762572991628,0.005,3460.9,3460.3,0.6828]
[1762572991945,0.005,3460.9,3460.8,0.4951]
[1762572992147,2.88829261,3462.3,3460.8,0.4951]
[1762572992148,0.003,3463.2,3461.8,0.6828]
[1762572992373,0.003,3463.2,3462.6,3.38590323]
[1762572992510,2.89055639,3463.2,3462.6,0.4979]
[1762572992710,0.003,3463.2,3462.6,1.07301946]
[1762572993125,0.003,3463.2,3462.6,0.9574]
[1762572993948,0.003,3463.2,3462.6,3.84540323]
[1762572994170,0.003,3463.2,3462.6,0.9574]
[1762572994320,0.003,3463.2,3462.6,3.84540323]
[1762572995814,0.003,3463.2,3461.8,0.6472]
[1762572995815,0.8438,3462.9,3461.8,0.6472]
[1762572996042,2.88818799,3462.4,3461.8,0.6472]
[1762572996243,3.46580711,3462.4,3461.9,0.4595]
[1762572997057,0.57761912,3462.4,3462.3,0.4979]
[1762572997359,0.649,3462.9,3462.3,0.4979]
[1762572997525,0.005,3462.9,3462.6,0.4979]
[1762572997948,0.005,3462.9,3462.6,0.9574]
[1762572999985,0.005,3462.9,3462.1,0.4595]
[1762573000164,2.88801192,3462.6,3461.9,0.4595]
[1762573000459,0.57758542,3462.5,3461.9,0.4595]
[1762573000860,2.88791327,3462.8,3461.9,0.4595]
[1762573001062,2.88814669,3462.5,3461.9,0.4595]
[1762573001367,2.88818063,3462.4,3461.9,0.4595]
[1762573002004,2.88818063,3462.4,3462.3,0.4979]
[1762573002590,0.86740175,3462.7,3462.3,0.9891]
[1762573002897,0.86740175,3462.7,3462.6,0.483]
[1762573003268,0.37632339,3462.7,3462.6,0.9742]
[1762573003464,3.26424322,3462.7,3462.6,0.483]
[1762573003774,2.88858719,3461.9,3461.8,0.1877]
[1762573004083,2.88868293,3461.8,3461.6,0.1999]
[1762573004472,2.88875408,3461.7,3461.6,0.1999]
[1762573004996,2.88875408,3461.7,3461.6,0.6829]
[1762573005303,2.88895492,3461.5,3461.3,0.4912]
[1762573005512,2.88895492,3461.5,3460.8,2.88949791]
[1762573005700,0.703,3461.6,3461.1,0.4912]
[1762573006177,2.88899689,3461.5,3461.1,0.4912]
[1762573006377,2.88901769,3461.4,3461.1,0.4912]
[1762573006781,2.8891406,3461.3,3461.1,0.4912]
[1762573006981,0.4868,3461.5,3460.5,0.4537]
[1762573007394,2.88945012,3460.9,3460.5,0.4537]
[1762573007573,2.88950675,3460.8,3460.5,0.4537]
[1762573008004,2.88950675,3460.8,3460.7,0.4511]
[1762573008310,2.88959786,3460.7,3460.3,0.1877]
[1762573008687,2.88959786,3460.7,3460.4,0.4537]
[1762573009277,0.703,3460.7,3460.4,0.4537]
[1762573009606,3.5926136,3460.7,3460.4,0.4537]
[1762573009787,2.88967415,3460.6,3460.4,0.4537]
[1762573010206,0.703,3460.7,3460.4,0.4537]
[1762573010406,0.703,3460.7,3460.6,0.4511]
[1762573010777,3.59258881,3460.7,3460.6,0.4511]
[1762573011892,0.703,3460.7,3460.6,0.4511]
[1762573012087,2.88867063,3461.8,3460.6,0.4511]
[1762573012288,1.00902706,3461.7,3460.6,0.9048]
[1762573012490,2.8893095,3461.1,3460.6,0.9048]
[1762573012695,2.88933967,3461.0,3460.7,0.4537]
[1762573012878,2.88928105,3461.1,3460.7,0.4537]
[1762573013081,2.88928105,3461.1,3460.9,0.4511]
[1762573013281,3.55389671,3461.1,3461.0,0.4511]
[1762573014116,0.66461566,3461.1,3461.0,0.4511]
[1762573014320,3.55387052,3461.1,3461.0,0.4511]
[1762573015425,1.09821566,3461.1,3460.6,0.001]
[1762573015596,2.88958881,3460.7,3460.6,0.001]
[1762573016324,4.10863643,3460.7,3460.6,0.001]
[1762573017198,4.23493643,3460.7,3460.6,0.001]
[1762573017924,4.72083643,3460.7,3460.6,0.001]
[1762573018523,4.59453643,3460.7,3460.6,0.001]
[1762573020426,5.00004043,3460.7,3460.6,0.001]
[1762573022103,0.77384762,3460.7,3460.6,0.001]
[1762573022306,2.88958881,3460.7,3460.6,0.001]
[1762573023141,4.22619281,3460.7,3460.6,0.001]
[1762573023695,2.89000635,3460.2,3460.1,1e-08]
[1762573023894,4.03100635,3460.2,3460.1,1e-08]
[1762573024101,4.52100635,3460.2,3460.1,1e-08]
[1762573024301,5.55108136,3460.2,3460.1,1e-08]
[1762573025303,5.95658536,3460.2,3460.1,1e-08]
[1762573031446,3.29567741,3460.0,3459.9,1e-08]
[1762573031651,3.76357741,3460.0,3459.9,1e-08]
[1762573031823,5.9343668,3460.0,3459.9,1e-08]
[1762573033349,2.89159413,3458.3,3458.2,0.4952]
[1762573033846,2.89159413,3458.3,3458.2,0.9728]
[1762573035053,0.699,3458.4,3458.2,0.9728]
[1762573035357,3.59051052,3458.4,3458.3,0.9728]
[1762573036453,0.699,3458.4,3458.3,0.9728]
[1762573036626,0.699,3458.7,3458.3,0.9728]
[1762573036846,3.59025972,3458.7,3458.6,0.4776]
[1762573038547,2.89134331,3458.6,3457.9,0.1818]
[1762573038746,2.89167775,3458.2,3458.1,0.5002]
[1762573039177,2.89167775,3458.2,3458.1,0.005]
[1762573039476,3.31777775,3458.2,3458.1,0.005]
[1762573039678,4.21318175,3458.2,3458.1,1e-08]
[1762573039876,4.99355854,3458.2,3458.1,1e-08]
[1762573047752,4.37005454,3458.2,3458.1,1e-08]
[1762573048102,4.77555854,3458.2,3458.1,1e-08]
[1762573048572,4.37005454,3458.2,3458.1,1e-08]
[1762573049365,4.37005454,3458.2,3458.1,1.15890001]
[1762573049569,3.58967775,3458.2,3458.1,1.15890001]
[1762573050460,3.58967775,3458.2,3458.1,0.47760001]
[1762573050791,4.05757775,3458.2,3458.1,1e-08]
[1762573050991,4.46308175,3458.2,3458.1,1e-08]
[1762573051167,5.24339854,3458.2,3458.1,1e-08]
[1762573051570,4.77549854,3458.2,3458.1,1e-08]
[1762573052058,4.77549854,3458.2,3458.1,0.00100001]
[1762573052259,4.77749854,3458.2,3458.1,0.00100001]
[1762573052456,4.77749854,3458.2,3458.1,1.13300001]
[1762573052994,4.77749854,3458.2,3458.1,0.68250001]
[1762573054392,4.77749854,3458.2,3458.1,0.49640001]
[1762573056707,3.59167775,3458.2,3458.1,1.13500001]
[1762573057874,0.002,3458.2,3458.1,1.13500001]
[1762573058101,2.89367775,3458.2,3458.1,1.13500001]
[1762573058404,0.002,3458.2,3458.1,0.49640001]
[1762573058593,2.89367775,3458.2,3458.1,0.49640001]
[1762573058787,3.59067775,3458.2,3458.1,0.49640001]
[1762573059301,4.2389041,3458.2,3458.1,0.49640001]
[1762573059924,4.2389041,3458.2,3458.1,0.00100001]
[1762573060633,4.6979041,3458.2,3458.1,0.00100001]
[1762573065042,3.29659015,3459.0,3458.1,0.00100001]
[1762573065043,0.007,3460.9,3460.1,0.1847]
[1762573065242,0.007,3460.9,3460.2,0.4694]
[1762573065599,0.334,3460.8,3460.2,0.4694]
[1762573065799,1.69967303,3460.7,3460.2,0.4694]
[1762573066033,2.10956605,3460.6,3460.2,0.4694]
[1762573066248,0.72,3460.9,3460.5,0.4567]
[1762573066542,0.72,3460.9,3460.8,0.4567]
[1762573067043,0.72,3460.9,3460.8,0.9261]
[1762573067404,0.007,3460.9,3460.8,0.9261]
[1762573067606,0.72,3460.9,3460.8,0.9261]
[1762573070964,0.057,3461.9,3461.8,2.88867063]
[1762573071244,0.002,3462.3,3462.2,2.88833689]
[1762573071429,0.002,3462.3,3462.2,4.01083689]
[1762573073240,0.002,3462.3,3462.2,1.1225]
[1762573077879,2.89025347,3462.3,3462.2,0.4567]
[1762573078075,0.002,3462.3,3462.2,0.4567]
[1762573078639,0.002,3462.3,3462.2,0.9261]
[1762573080050,0.002,3462.3,3462.2,0.4567]
[1762573080458,0.002,3462.3,3462.2,0.9261]
[1762573081685,2.89025347,3462.3,3462.2,0.4567]
[1762573081851,2.88833689,3462.2,3461.1,0.4694]
[1762573082054,2.88890135,3461.6,3461.1,0.4694]
[1762573082475,2.88890135,3461.6,3461.5,0.4661]
[1762573082874,0.71,3461.9,3461.5,0.4661]
[1762573083182,2.88872692,3461.8,3461.5,0.9282]
[1762573083377,0.71,3461.9,3461.5,0.4661]
[1762573083547,2.88901918,3461.4,3461.1,0.4621]
[1762573084472,2.88908791,3461.3,3461.1,0.4621]
[1762573084844,2.88908791,3461.3,3461.2,0.4661]
[1762573085882,2.88925486,3461.1,3461.0,0.1964]
[1762573086296,2.88925486,3461.1,3461.0,0.6625]
[1762573086448,0.709,3461.5,3461.0,1.1246]
[1762573086779,2.88915017,3461.3,3461.0,0.1964]
[1762573086979,2.88925486,3461.1,3461.0,0.6585]
[1762573087386,2.87416454,3461.1,3461.0,0.6625]
[1762573087591,1.06879354,3461.5,3460.4,0.4621]
[1762573087758,2.88958746,3460.8,3460.4,0.4621]
[1762573088172,2.88958746,3460.8,3460.7,0.4661]
[1762573090695,2.88935002,3461.0,3460.4,0.001]
[1762573091197,2.88956552,3460.8,3460.4,0.001]
[1762573091492,0.709,3461.1,3460.4,0.4631]
[1762573091703,2.88955942,3460.8,3460.4,0.4631]
[1762573092198,0.709,3461.1,3460.7,0.4661]
[1762573092406,0.709,3461.1,3461.0,0.4661]
[1762573092610,2.88925486,3461.1,3461.0,0.9282]
[1762573092764,0.708,3461.4,3461.0,0.9282]
[1762573092964,2.88916464,3461.3,3461.2,0.4661]
[1762573093247,2.88916464,3461.3,3461.1,0.1847]
[1762573093248,2.88917138,3461.2,3461.1,0.6468]
[1762573093699,2.88917138,3461.2,3461.1,1.1129]
[1762573094095,2.88915902,3461.3,3461.1,1.1129]
[1762573094262,0.708,3461.4,3461.2,0.4661]
[1762573094473,2.88908791,3461.3,3461.2,0.4661]
[1762573095502,2.88908791,3461.3,3460.6,0.4621]
[1762573095503,2.88952356,3460.8,3460.6,0.4621]
[1762573095673,0.89660832,3461.3,3460.6,0.4621]
[1762573096015,2.88958881,3460.7,3460.6,0.4621]
[1762573096372,2.75377588,3460.7,3460.6,0.9282]
[1762573097183,2.75377588,3460.7,3460.6,0.4661]
[1762573097981,0.707,3461.0,3460.6,0.9282]
[1762573098178,0.707,3461.0,3460.9,0.4661]
[1762573098635,2.88845639,3462.1,3460.9,0.9282]
[1762573098797,2.88897615,3461.5,3461.0,0.9282]
[1762573099321,2.88897615,3461.5,3461.4,0.4661]
[1762573099726,2.88917138,3461.2,3461.1,0.1847]
[1762573099888,2.88917138,3461.2,3461.1,0.4661]
[1762573103138,0.706,3461.5,3461.1,0.4661]
[1762573103340,2.88872654,3461.8,3461.4,0.4661]
[1762573103540,2.88875662,3461.7,3461.4,0.4661]
[1762573104037,3.59370579,3461.8,3461.6,0.4661]
[1762573104218,0.705,3461.8,3461.6,0.4661]
[1762573104395,2.88875408,3461.7,3461.6,0.4661]
[1762573104597,3.59368436,3461.8,3461.6,0.4661]
[1762573104798,3.59368436,3461.8,3461.7,0.4661]
[1762573105123,0.002,3461.9,3461.7,0.4661]
[1762573105451,0.002,3461.9,3461.8,0.9282]
[1762573106612,2.89058719,3461.9,3461.8,0.7282]
[1762573107213,0.002,3461.9,3461.8,0.7282]
[1762573108001,2.89058719,3461.9,3461.8,0.7282]
[1762573108302,2.89058719,3461.9,3461.2,1.02954118]
[1762573108303,2.88908073,3461.4,3461.2,0.771308]
[1762573108522,0.705,3461.6,3461.2,0.771308]
[1762573108695,2.88900444,3461.4,3461.3,0.4661]
[1762573109330,2.88900444,3461.4,3460.9,0.6468]
[1762573109331,2.88924817,3461.2,3460.9,0.6468]
[1762573109532,0.705,3461.6,3461.0,0.4621]
[1762573109835,2.88944101,3460.9,3460.7,0.4621]
[1762573110248,2.88917138,3461.2,3460.8,0.4661]
[1762573110414,2.88942182,3460.9,3460.8,0.4661]
[1762573110614,2.88923617,3461.2,3460.8,0.4661]
[1762573110921,2.88937261,3461.0,3460.8,0.4661]
[1762573111431,2.88927158,3461.1,3460.8,0.4661]
[1762573111742,0.704,3461.3,3460.9,0.4621]
[1762573111902,0.704,3461.3,3461.2,0.4661]
[1762573112126,3.59308791,3461.3,3461.2,0.4661]
[1762573112866,0.704,3461.3,3461.2,0.9315]
[1762573114158,0.704,3461.3,3461.2,0.4661]
[1762573114466,3.59308791,3461.3,3461.2,0.4661]
[1762573114759,0.703,3461.5,3461.2,0.4661]
[1762573114959,0.703,3461.5,3461.2,0.9315]
[1762573115169,3.59192949,3461.5,3461.4,0.491]
[1762573117327,2.88908791,3461.3,3461.2,0.4654]
[1762573117554,2.88908791,3461.3,3461.1,0.1817]
[1762573117754,2.88908791,3461.3,3461.2,0.491]
[1762573118268,3.59198366,3461.5,3461.2,0.491]
[1762573118447,0.703,3461.5,3461.2,0.491]
[1762573118650,2.88908353,3461.4,3461.2,0.491]
[1762573118850,0.703,3461.5,3461.4,0.491]
[1762573119039,0.703,3461.5,3461.4,0.9564]
[1762573119241,2.88888318,3461.6,3461.4,0.9564]
[1762573119242,2.88888318,3461.6,3461.4,0.491]
[1762573119466,2.88867063,3461.8,3461.1,0.1817]
[1762573119687,2.8889888,3461.5,3460.8,0.77107259]
[1762573119886,2.88898595,3461.5,3460.8,3.66052071]
[1762573120088,2.88898595,3461.5,3460.9,0.4654]
[1762573120285,2.88898595,3461.5,3461.4,0.491]
[1762573121088,0.71669257,3461.8,3461.4,0.491]
[1762573121385,2.88880033,3461.7,3461.4,0.491]
[1762573121586,2.88885182,3461.6,3461.4,0.491]
[1762573121760,2.88875408,3461.7,3461.4,0.491]
[1762573121965,2.88892098,3461.5,3461.4,0.491]
[1762573122181,2.88905617,3461.4,3461.1,0.1817]
[1762573122368,2.88905617,3461.4,3461.1,0.679]
[1762573122568,2.88905617,3461.4,3461.3,0.4961]
[1762573124076,0.4514,3461.4,3460.7,0.77107259]
[1762573124277,2.88914161,3461.3,3460.7,0.96652631]
[1762573124479,2.88914161,3461.3,3460.8,0.4973]
[1762573124995,2.88914161,3461.3,3461.2,0.4961]
[1762573125555,2.88914161,3461.3,3460.9,0.001]
[1762573125556,2.88933834,3461.0,3460.9,0.001]
[1762573125791,4.57234347,3461.0,3460.9,0.001]
[1762573126093,0.98200513,3461.0,3460.9,0.001]
[1762573126387,3.59233834,3461.0,3460.9,0.001]
[1762573126594,3.59233834,3461.0,3460.9,0.4971]
[1762573126798,0.703,3461.0,3460.9,0.9944]
[1762573127196,2.88925783,3461.1,3460.9,0.9944]
[1762573127507,2.88923688,3461.2,3461.0,0.9934]
[1762573128123,2.88923688,3461.2,3461.1,0.4961]
[1762573128578,2.88933834,3461.0,3460.9,0.001]
[1762573128771,3.33183834,3461.0,3460.9,0.001]
[1762573129172,2.88933834,3461.0,3460.9,0.001]
[1762573129767,2.88933834,3461.0,3460.9,0.4971]
[1762573131080,2.88911867,3461.3,3460.9,0.4971]
[1762573131372,1.1848,3461.4,3460.9,0.4971]
[1762573132071,2.88933834,3461.0,3460.9,0.4971]
[1762573132408,2.88926781,3461.1,3460.9,0.4971]
[1762573132584,2.88933834,3461.0,3460.9,0.4971]
[1762573133811,4.43971014,3461.0,3460.9,0.001]
[1762573133994,5.14071014,3461.0,3460.9,0.001]
[1762573135294,2.88975581,3460.5,3460.4,0.001]
[1762573135495,4.06785581,3460.5,3460.4,0.001]
[1762573135724,5.26136736,3460.5,3460.4,0.001]
[1762573137098,0.6260718,3461.0,3460.4,0.4971]
[1762573137439,2.88975581,3460.5,3460.4,0.4971]
[1762573137640,3.59075581,3460.5,3460.4,0.001]
[1762573137934,4.51505581,3460.5,3460.4,0.001]
[1762573138898,0.4842,3461.8,3460.4,0.4971]
[1762573139216,0.701,3461.5,3460.6,0.4961]
[1762573139415,2.8893527,3461.0,3460.7,0.4973]
[1762573139818,0.701,3461.5,3460.9,0.4961]
[1762573140198,2.88920214,3461.2,3460.9,0.9934]
[1762573140567,0.701,3461.2,3460.9,0.9934]
[1762573140704,2.88917138,3461.2,3461.1,0.4961]
[1762573141022,3.59017138,3461.2,3461.1,0.4961]
[1762573141220,0.1916,3461.7,3461.1,1.1752]
[1762573141221,2.88893429,3461.5,3461.1,1.1752]
[1762573141409,0.701,3461.7,3461.6,0.4961]
[1762573141605,2.8889602,3461.5,3461.1,0.6791]
[1762573141810,2.8889602,3461.5,3461.1,0.1818]
[1762573142005,2.88885173,3461.6,3461.4,0.4961]
[1762573142226,2.88881667,3461.7,3461.4,0.4961]
[1762573142419,0.002,3461.8,3461.6,0.4887]
[1762573142626,0.002,3461.8,3461.7,0.4887]
[1762573143372,0.002,3461.8,3461.7,0.9567]
[1762573143518,0.002,3461.8,3461.7,3.84545408]
[1762573143722,0.002,3461.8,3461.7,4.51889096]
[1762573143959,0.002,3461.8,3461.7,4.5477785]
[1762573144313,0.002,3461.8,3461.7,4.51889096]
[1762573145458,0.002,3461.8,3461.7,1.63013688]
[1762573145653,0.002,3461.8,3461.7,0.9567]
[1762573146352,0.002,3461.8,3461.7,3.84545408]
[1762573146864,0.002,3461.8,3461.7,3.87434162]
[1762573147648,0.002,3461.8,3461.7,3.84545408]
[1762573149766,0.002,3462.1,3461.8,3.78287463]
[1762573149952,0.002,3462.1,3462.0,3.78270775]
[1762573150391,0.002,3462.1,3462.0,4.25070775]
[1762573150756,0.002,3462.1,3462.0,4.27959278]
[1762573151771,0.002,3462.1,3462.0,4.25070775]
[1762573151972,0.002,3462.1,3462.0,5.32086465]
[1762573152198,0.002,3462.1,3462.0,2.0268569]
[1762573152367,0.002,3462.1,3462.0,3.84520375]
[1762573152704,0.002,3462.1,3461.1,0.1818]
[1762573152705,0.002,3462.1,3461.6,0.468]
[1762573152864,0.002,3462.1,3461.8,2.88861954]
[1762573153058,0.002,3462.1,3461.7,2.8887221]
[1762573153269,0.002,3462.1,3461.7,0.468]
[1762573153503,0.002,3462.1,3461.6,2.88880498]
[1762573153835,3.38738087,3462.1,3461.4,0.468]
[1762573154052,3.38738169,3462.1,3461.4,3.35699616]
[1762573154321,0.99179943,3462.1,3461.4,0.468]
[1762573154506,0.99179943,3462.1,3461.1,0.1818]
[1762573154507,0.4969,3462.0,3461.1,0.1818]
[1762573154716,2.88871212,3461.8,3461.1,0.1818]
[1762573154908,3.01924302,3461.9,3461.1,3.07102455]
[1762573155225,2.88868081,3461.8,3461.1,0.1818]
[1762573155442,2.88868081,3461.8,3461.2,2.88916173]
[1762573155588,3.01919299,3461.9,3461.1,0.1818]
[1762573155915,2.88880811,3461.7,3461.0,2.88928527]
[1762573156234,0.4969,3461.8,3460.9,0.001]
[1762573156387,2.88885784,3461.6,3461.0,2.88933413]
[1762573156588,0.4969,3461.8,3460.9,0.001]
[1762573156788,2.88897424,3461.5,3460.9,0.001]
[1762573157082,2.8886863,3461.8,3461.0,3.35727542]
[1762573157288,2.88876104,3461.7,3461.0,3.35727542]
[1762573157488,3.0191998,3461.9,3461.1,0.1851]
[1762573157688,0.1306,3461.9,3461.1,0.1851]
[1762573157922,2.88880548,3461.7,3461.1,0.1851]
[1762573158125,2.88884703,3461.6,3461.1,0.1851]
[1762573158488,0.6275,3461.9,3461.1,0.1851]
[1762573158685,1.13606271,3461.9,3461.1,0.1851]
[1762573158889,2.88884607,3461.6,3461.1,0.1851]
[1762573159523,0.4969,3461.8,3461.1,3.07433843]
[1762573159703,0.4969,3461.8,3461.1,0.1851]
[1762573159898,2.88880977,3461.7,3461.1,0.1851]
[1762573160099,2.88880977,3461.7,3460.9,0.001]
[1762573160100,0.4969,3461.8,3460.9,2.89040395]
[1762573160406,2.88898577,3461.5,3460.9,0.001]
[1762573161362,3.38575791,3461.6,3461.0,2.88933801]
[1762573163059,0.4969,3461.6,3460.9,2.89040606]
[1762573163352,0.4969,3461.6,3461.1,2.88919009]
[1762573163578,0.4969,3461.6,3460.9,0.001]
[1762573163738,2.88897115,3461.5,3460.9,0.001]